[Event "GCT Superbet Blitz Poland 2025"]
[Site "Warsaw"]
[Date "2025.04.29"]
[Round "9"]
[White "Vachier-Lagrave, Maxime"]
[Black "Aravindh, Chithambaram VR."]
[Result "1/2-1/2"]
[ECO "B76"]
[WhiteElo "2722"]
[BlackElo "2749"]
[Annotator "RC"]
[PlyCount "111"]
[EventDate "2025.??.??"]
[EventType "blitz"]
[TimeControl "300+2"]

1. e4 {[%emt 0:00:01]} c5 {[%emt 0:00:02]} 2. Nf3 {[%emt 0:00:01]} d6 {[%emt 0:00:01]} 3. d4 {[%emt 0:00:03]} cxd4 {[%emt 0:00:02]} 4. Nxd4 {[%emt 0:00:01]} Nf6 {[%emt 0:00:02]} 5. Nc3 {[%emt 0:00:01]} g6 {[%emt 0:00:01]} 6. Be3 {[%emt 0:00:12]} Bg7 {[%emt 0:00:02]} 7. f3 {[%emt 0:00:01]} O-O {[%emt 0:00:02]} 8. Qd2 {[%emt 0:00:02]} Nc6 {[%emt 0:00:02]} 9. O-O-O {[%emt 0:00:05]} d5 {[%emt 0:00:12]} 10. exd5 {[%emt 0:00:19]} Nxd5 {[%emt 0:00:04]} 11. Nxc6 {[%emt 0:00:02]} bxc6 {[%emt 0:00:01]} 12. Bd4 {[%emt 0:00:01]} e5 {[%emt 0:00:15]} 13. Bc5 {[%emt 0:00:01]} Be6 {[%emt 0:00:03]} 14. Ne4 {[%emt 0:00:09]} Re8 {[%emt 0:00:32]} 15. Bc4 {[%emt 0:00:07]} Qc7 {[%emt 0:00:17]} 16. h4 {[%emt 0:00:24]} h6 {[%emt 0:00:07]} ({RR} 16... Rad8 17. Qf2 Nf4 18. Bxe6 Nxe6 19. Be3 f5 20. Nc5 Nxc5 21. Bxc5 e4 22. fxe4 Qe5 23. c3 Qxe4 24. Rxd8 Rxd8 25. Re1 Bh6+ 26. Be3 Re8 27. Kd2 f4 28. Bd4 f3+ 29. Kd1 Qb1# {0-1 (29) Zhao,Z (2171)-Schiszler,E chess.com INT 2025}) 17. g4 {[%emt 0:00:10]} f5 {[%emt 0:00:31]} 18. gxf5 {[%emt 0:00:20]} gxf5 {[%emt 0:00:01]} 19. Ng3 $146 {[%emt 0:00:42]} ({RR} 19. Bd6 Qd7 20. Ba3 fxe4 21. fxe4 Rad8 22. exd5 cxd5 23. Qg2 Kh8 24. Rhg1 Rg8 25. Bb3 e4 26. Qe2 Qc7 27. Qe3 Rc8 28. Rg6 Bf5 29. Rxh6+ Bxh6 30. Qxh6+ Bh7 31. Bd6 Qg7 32. Qf4 Rce8 33. Bc5 {1-0 (33) Grebnev,A (2484)-Janturin,A (2384) Dzhubga RUS 2023}) ({RR} 19. Nd6 Rf8 20. Rhg1 Kh7 21. Nb5 Qf7 22. Bxf8 Rxf8 23. Nc3 Nxc3 24. Bxe6 Nxa2+ 25. Bxa2 Qxa2 26. Qd7 Rf7 27. Qxc6 Qa1+ 28. Kd2 Qxb2 29. Ke2 Qb6 30. Qxb6 axb6 31. Rd6 Rc7 32. c4 e4 33. fxe4 fxe4 {Aronian,L (2742)-Mamedov,R (2642) chess.com INT 2023 1-0 (49)}) ({RR} 19. Bd6 Qd7 20. Ba3 fxe4 21. fxe4 Rad8 22. exd5 cxd5 23. Qg2 Kh8 24. Rhg1 Rg8 25. Bb3 e4 26. Qe2 Qc7 27. Qe3 Rc8 28. Rg6 Bf5 29. Rxh6+ Bxh6 30. Qxh6+ Bh7 31. Bd6 Qg7 32. Qf4 Rce8 33. Bc5 {1-0 (33) Grebnev,A (2484)-Janturin,A (2384) Dzhubga RUS 2023}) ({RR} 19. Nd6 Red8 20. Rhg1 Kh7 21. Bxd5 cxd5 22. Qg2 Qd7 23. Qg6+ Kh8 24. f4 Rab8 25. fxe5 Rg8 26. Qh5 Bxe5 27. Qxh6+ Qh7 28. Qxe6 Bxb2+ 29. Kd2 Rgf8 30. Rg6 Bg7 31. Rdg1 Qxh4 32. Rxg7 Qf4+ 33. Be3 Qb4+ {Ilamparthi,A (2336)-Goossens,H (2204) Benidorm ESP 2022 1-0 (36)}) 19... Qf7 {[%emt 0:00:12]} 20. Rhg1 {[%emt 0:00:07]} Kh7 {[%emt 0:00:03]} 21. Qa5 {[%emt 0:00:07]} Rad8 {[%emt 0:00:16]} 22. Qxa7 {[%emt 0:00:16]} Rd7 {[%emt 0:00:06]} 23. Qa6 {[%emt 0:00:16]} Red8 {[%emt 0:00:24]} 24. Bb3 {[%emt 0:00:14]} Bf6 {[%emt 0:00:49]} 25. Rh1 {[%emt 0:00:30]} Rg8 {[%emt 0:00:27]} 26. Ne2 {[%emt 0:00:06]} Rg2 {[%emt 0:00:10]} 27. Nc3 {[%emt 0:00:24]} Nxc3 {[%emt 0:00:22]} 28. bxc3 {[%emt 0:00:01]} Bd5 {[%emt 0:00:04]} 29. Rhg1 {[%emt 0:00:20]} Rxg1 {[%emt 0:00:08]} 30. Rxg1 {[%emt 0:00:01]} Bxh4 {[%emt 0:00:03]} 31. Kb2 {[%emt 0:00:00]} Bf6 {[%emt 0:00:04]} 32. Qc8 {[%emt 0:00:05]} Bg7 {[%emt 0:00:10]} 33. a4 {[%emt 0:00:12]} Rb7 {[%emt 0:00:07]} 34. Bb4 {[%emt 0:00:10]} Rc7 {[%emt 0:00:12]} 35. Qa8 {[%emt 0:00:16]} Bxb3 {[%emt 0:00:04]} 36. cxb3 {[%emt 0:00:01]} c5 {[%emt 0:00:01]} 37. Ba5 {[%emt 0:00:07]} Rb7 {[%emt 0:00:01]} 38. c4 {[%emt 0:00:02]} Ra7 {[%emt 0:00:10]} 39. Qd8 {[%emt 0:00:04]} Rd7 {[%emt 0:00:01]} 40. Qc8 {[%emt 0:00:16]} e4+ {[%emt 0:00:01]} 41. Ka3 {[%emt 0:00:01]} exf3 {[%emt 0:00:02]} 42. Rf1 {[%emt 0:00:03]} Rd3 {[%emt 0:00:01]} 43. Bb6 {[%emt 0:00:03]} Qf6 {[%emt 0:00:07]} 44. Bxc5 {[%emt 0:00:01]} Qb2+ {[%emt 0:00:03]} 45. Kb4 {[%emt 0:00:01]} Qxb3+ {[%emt 0:00:02]} 46. Ka5 {[%emt 0:00:00]} Bc3+ {[%emt 0:00:01]} 47. Ka6 Qxc4+ {[%emt 0:00:02]} 48. Kb7 {[%emt 0:00:02]} Qe4+ {[%emt 0:00:03]} 49. Kb6 {[%emt 0:00:01]} Bg7 {[%emt 0:00:02]} 50. a5 {[%emt 0:00:03]} Rb3+ {[%emt 0:00:02]} 51. Ka7 {[%emt 0:00:01]} Qe2 {[%emt 0:00:02]} 52. Qxf5+ {[%emt 0:00:01]} Kh8 {[%emt 0:00:02]} 53. Qc8+ {[%emt 0:00:03]} Kh7 {[%emt 0:00:01]} 54. Qf5+ {[%emt 0:00:01]} Kh8 {[%emt 0:00:02]} 55. Qc8+ {[%emt 0:00:06]} Kh7 {[%emt 0:00:01]} 56. Qf5+ {[%emt 0:00:04]} 1/2-1/2

[Event "GCT Superbet Blitz Poland 2025"]
[Site "Warsaw"]
[Date "2025.04.29"]
[Round "9"]
[White "Topalov, Veselin"]
[Black "Deac, Bogdan-Daniel"]
[Result "0-1"]
[ECO "E61"]
[WhiteElo "2717"]
[BlackElo "2668"]
[Annotator "RC"]
[PlyCount "76"]
[EventDate "2025.??.??"]
[EventType "blitz"]
[TimeControl "300+2"]

1. Nf3 {[%emt 0:00:01]} Nf6 {[%emt 0:00:02]} 2. e3 {[%emt 0:00:01]} c5 {[%emt 0:00:01]} 3. b3 {[%emt 0:00:02]} g6 {[%emt 0:00:02]} 4. Bb2 {[%emt 0:00:04]} Bg7 {[%emt 0:00:02]} 5. c4 {[%emt 0:00:03]} b6 {[%emt 0:00:13]} 6. Be2 {[%emt 0:00:04]} Bb7 {[%emt 0:00:02]} 7. O-O {[%emt 0:00:02]} O-O {[%emt 0:00:03]} 8. d4 {[%emt 0:00:19]} cxd4 {[%emt 0:00:29]} 9. Nxd4 {[%emt 0:00:02]} d6 {[%emt 0:00:18]} 10. Nc3 {[%emt 0:00:06]} Nbd7 {[%emt 0:00:05]} 11. Bf3 {[%emt 0:00:01]} Qc8 {[%emt 0:00:05]} 12. Rc1 {[%emt 0:00:07]} Ne5 {[%emt 0:00:05]} 13. Bxb7 {[%emt 0:00:04]} Qxb7 {[%emt 0:00:01]} 14. Qe2 {[%emt 0:00:04]} a6 {[%emt 0:00:10]} 15. Rfd1 $146 {[%emt 0:00:02]} ({RR} 15. e4 Rac8 16. Nd5 e6 17. Nxf6+ Bxf6 18. Rfd1 Rfd8 19. f4 Nd7 20. Re1 b5 21. cxb5 axb5 22. Nf3 Rxc1 23. Bxc1 Nc5 24. e5 dxe5 25. fxe5 Bg7 26. Bg5 Rd5 27. Rd1 Nd7 28. Bf4 h6 29. h4 b4 {Zemlyanskii,I (2543)-Svidler,P (2698) Almaty KAZ 2024 ½-½ (65)}) ({RR} 15. e4 Rac8 16. Nd5 e6 17. Nxf6+ Bxf6 18. Rfd1 Rfd8 19. f4 Nd7 20. Re1 b5 21. cxb5 axb5 22. Nf3 Rxc1 23. Bxc1 Nc5 24. e5 dxe5 25. fxe5 Bg7 26. Bg5 Rd5 27. Rd1 Nd7 28. Bf4 h6 29. h4 b4 {Zemlyanskii,I (2543)-Svidler,P (2698) Almaty KAZ 2024 ½-½ (65)}) 15... Rac8 {[%emt 0:00:17]} 16. h3 {[%emt 0:00:02]} Rfd8 {[%emt 0:00:14]} 17. a4 {[%emt 0:00:09]} Ned7 {[%emt 0:00:33]} 18. Ba1 {[%emt 0:00:32]} Nc5 {[%emt 0:00:18]} 19. Rb1 {[%emt 0:00:08]} Rd7 {[%emt 0:00:48]} 20. Nd5 {[%emt 0:00:28]} Nxd5 {[%emt 0:00:26]} 21. cxd5 {[%emt 0:00:01]} Qxd5 {[%emt 0:00:23]} 22. b4 {[%emt 0:00:03]} Nxa4 {[%emt 0:00:11]} 23. Qxa6 {[%emt 0:00:01]} Qa8 {[%emt 0:00:25]} 24. Qxa8 {[%emt 0:00:10]} Rxa8 {[%emt 0:00:01]} 25. Nb5 {[%emt 0:00:01]} Rc8 {[%emt 0:00:22]} 26. Rd2 {[%emt 0:00:40]} Rdd8 {[%emt 0:00:10]} 27. Bxg7 {[%emt 0:01:03]} Kxg7 {[%emt 0:00:01]} 28. Rd3 {[%emt 0:00:20]} Rc4 {[%emt 0:00:02]} 29. Ra3 {[%emt 0:00:06]} Ra8 {[%emt 0:00:00]} 30. Kf1 {[%emt 0:00:18]} Kf6 {[%emt 0:00:06]} 31. Ke2 {[%emt 0:00:03]} Ke6 {[%emt 0:00:04]} 32. Kd3 {[%emt 0:00:07]} d5 {[%emt 0:00:01]} 33. Rba1 {[%emt 0:00:02]} Nb2+ {[%emt 0:00:02]} 34. Ke2 {[%emt 0:00:02]} Rxa3 {[%emt 0:00:03]} 35. Nxa3 {[%emt 0:00:02]} Rxb4 {[%emt 0:00:02]} 36. Nc2 {[%emt 0:00:01]} Ra4 {[%emt 0:00:02]} 37. Rb1 {[%emt 0:00:02]} Nc4 {[%emt 0:00:01]} 38. Nd4+ {[%emt 0:00:01]} Kf6 0-1

[Event "GCT Superbet Blitz Poland 2025"]
[Site "Warsaw"]
[Date "2025.04.30"]
[Round "10"]
[White "Praggnanandhaa R"]
[Black "Deac, Bogdan-Daniel"]
[Result "0-1"]
[ECO "A03"]
[WhiteElo "2758"]
[BlackElo "2668"]
[Annotator "ChessBase"]
[PlyCount "144"]
[EventDate "2025.??.??"]
[EventType "blitz"]
[TimeControl "300+2"]

1. b3 {[%emt 0:00:01]} c5 {[%emt 0:00:02]} 2. Bb2 {[%emt 0:00:02]} d5 {[%emt 0:00:02]} 3. e3 {[%emt 0:00:01]} a6 {[%emt 0:00:01]} 4. f4 {[%emt 0:00:01]} Nc6 {[%emt 0:00:07]} 5. Nf3 {[%emt 0:00:02]} Nf6 {[%emt 0:00:02]} 6. Ne5 {[%emt 0:00:01]} ({RR} 6. g3 g6 7. Bg2 Bg7 8. O-O d4 9. exd4 Nd5 10. Nc3 Bg4 11. Nxd5 Qxd5 12. Ne5 Qxg2+ 13. Kxg2 Bxd1 14. Raxd1 Nxd4 15. c3 Nf5 16. g4 Nd6 17. Rfe1 O-O-O 18. Ba3 f6 19. Nf3 f5 20. gxf5 Nxf5 {Bacrot,E (2720)-Gundavaa,B (2501) Dubai 2014 1-0 (41)}) 6... g6 {[%emt 0:00:27]} ({RR} 6... Qc7 7. g3 e6 8. Bg2 Be7 9. O-O O-O 10. d3 b5 11. Nd2 Bb7 12. Ndf3 Nd7 13. Nxd7 Qxd7 14. Ne5 Nxe5 15. Bxe5 Rac8 16. h4 Rfe8 17. h5 Bf8 18. Qg4 Bc6 19. Qe2 d4 20. Bxc6 Rxc6 21. exd4 {Khater,S (2012)-Wu,C (2347) Chess.com INT 2022 ½-½ (34)}) 7. Nxc6 {[%emt 0:00:35]} bxc6 {[%emt 0:00:02]} 8. Be5 $146 {[%emt 0:00:04]} ({RR} 8. Nc3 d4 9. Na4 e6 10. Bd3 Be7 11. e4 e5 12. Qf3 exf4 13. Qxf4 Nh5 14. Qf2 O-O 15. O-O Be6 16. Qe2 Qc7 17. e5 Bd5 18. c3 Qa7 19. c4 Be6 20. Be4 Rac8 21. g3 Ng7 22. Ba3 Bh3 {Ryznar,V-Maroja,S Zadar 1994 ½-½ (72)}) ({RR} 8. Nc3 Bg7 9. Na4 c4 10. Bd4 O-O 11. bxc4 Ne4 12. Bxg7 Kxg7 13. Be2 Qa5 14. c3 Rb8 15. c5 f6 16. O-O Nxd2 17. Qxd2 Qxa4 18. Rfb1 Bf5 19. Rb4 Qa3 20. Qc1 Qa5 21. Qb2 Ra8 22. Rb7 Qxc5 {Dimitrov,R (2500)-Galunova,T (2152) Albena 2016 ½-½ (65)}) 8... Bh6 {[%emt 0:00:19]} 9. Nc3 {[%emt 0:00:18]} O-O {[%emt 0:00:09]} 10. Na4 {[%emt 0:00:22]} d4 {[%emt 0:00:13]} 11. Qf3 {[%emt 0:01:25]} Ng4 {[%emt 0:00:29]} 12. exd4 {[%emt 0:00:35]} Nxe5 {[%emt 0:00:44]} 13. dxe5 {[%emt 0:00:11]} Qd4 {[%emt 0:00:05]} 14. c3 {[%emt 0:00:20]} Qxf4 {[%emt 0:00:26]} 15. Qxf4 {[%emt 0:00:02]} Bxf4 {[%emt 0:00:02]} 16. Nb6 {[%emt 0:00:12]} Ra7 {[%emt 0:00:02]} 17. Nc4 {[%emt 0:00:02]} Be6 {[%emt 0:00:26]} 18. g3 {[%emt 0:00:05]} Bh6 {[%emt 0:00:02]} 19. O-O-O {[%emt 0:00:36]} Rd8 {[%emt 0:00:30]} 20. Kc2 {[%emt 0:00:02]} Rad7 {[%emt 0:01:10]} 21. d3 {[%emt 0:00:01]} Bxc4 {[%emt 0:00:08]} 22. bxc4 {[%emt 0:00:01]} Rb7 {[%emt 0:00:02]} 23. Bg2 {[%emt 0:00:35]} Rdb8 {[%emt 0:00:02]} 24. Rb1 {[%emt 0:00:02]} Rxb1 {[%emt 0:00:01]} 25. Rxb1 {[%emt 0:00:01]} Rxb1 {[%emt 0:00:02]} 26. Kxb1 {[%emt 0:00:00]} Bg7 {[%emt 0:00:01]} 27. d4 {[%emt 0:00:14]} cxd4 {[%emt 0:00:01]} 28. cxd4 {[%emt 0:00:01]} c5 {[%emt 0:00:02]} 29. dxc5 {[%emt 0:00:01]} Bxe5 {[%emt 0:00:01]} 30. Kc2 {[%emt 0:00:00]} Kf8 {[%emt 0:00:03]} 31. Bb7 {[%emt 0:00:02]} a5 {[%emt 0:00:03]} 32. Kd3 {[%emt 0:00:06]} e6 {[%emt 0:00:05]} 33. Bf3 {[%emt 0:00:02]} Ke7 {[%emt 0:00:02]} 34. a4 {[%emt 0:00:03]} Bb8 {[%emt 0:00:02]} 35. Bc6 {[%emt 0:00:02]} Ba7 {[%emt 0:00:04]} 36. Kd4 {[%emt 0:00:01]} f5 {[%emt 0:00:02]} 37. Bb7 {[%emt 0:00:02]} g5 {[%emt 0:00:06]} 38. Bg2 {[%emt 0:00:01]} Kf6 {[%emt 0:00:03]} 39. Bf1 {[%emt 0:00:04]} g4 {[%emt 0:00:02]} 40. Bg2 {[%emt 0:00:01]} Ke7 {[%emt 0:00:01]} 41. Bh1 {[%emt 0:00:01]} h5 {[%emt 0:00:02]} 42. Bg2 {[%emt 0:00:01]} Bb8 {[%emt 0:00:04]} 43. c6 {[%emt 0:00:03]} Bd6 {[%emt 0:00:02]} 44. Bf1 {[%emt 0:00:04]} Bc7 {[%emt 0:00:04]} 45. Bg2 {[%emt 0:00:01]} e5+ {[%emt 0:00:03]} 46. Kd5 {[%emt 0:00:01]} f4 {[%emt 0:00:02]} 47. Be4 {[%emt 0:00:04]} f3 {[%emt 0:00:02]} 48. Bg6 {[%emt 0:00:03]} Kf6 {[%emt 0:00:01]} 49. Bd3 {[%emt 0:00:00]} Ke7 {[%emt 0:00:01]} 50. c5 {[%emt 0:00:01]} Kf6 {[%emt 0:00:02]} 51. Ke4 {[%emt 0:00:04]} Kg5 {[%emt 0:00:02]} 52. Kd5 {[%emt 0:00:01]} h4 {[%emt 0:00:03]} 53. Ke6 {[%emt 0:00:02]} hxg3 {[%emt 0:00:01]} 54. hxg3 {[%emt 0:00:01]} e4 {[%emt 0:00:01]} 55. Bxe4 {[%emt 0:00:01]} Bxg3 {[%emt 0:00:01]} 56. Kd7 {[%emt 0:00:01]} Be5 {[%emt 0:00:03]} 57. c7 {[%emt 0:00:03]} Bxc7 {[%emt 0:00:01]} 58. Kxc7 {[%emt 0:00:00]} Kf4 {[%emt 0:00:02]} 59. Bd5 {[%emt 0:00:07]} g3 {[%emt 0:00:01]} 60. c6 {[%emt 0:00:02]} g2 {[%emt 0:00:01]} 61. Kd6 {[%emt 0:00:03]} g1=Q {[%emt 0:00:02]} 62. c7 {[%emt 0:00:01]} Qb6+ {[%emt 0:00:04]} 63. Kd7 {[%emt 0:00:02]} Qd4 {[%emt 0:00:04]} 64. Kd6 {[%emt 0:00:03]} Qe5+ {[%emt 0:00:02]} 65. Kc6 {[%emt 0:00:00]} Qc3+ {[%emt 0:00:02]} 66. Kd7 {[%emt 0:00:02]} f2 {[%emt 0:00:02]} 67. Bg2 {[%emt 0:00:03]} Qd4+ {[%emt 0:00:02]} 68. Ke7 {[%emt 0:00:03]} Qg7+ {[%emt 0:00:01]} 69. Kd6 {[%emt 0:00:01]} Qxg2 {[%emt 0:00:17]} 70. c8=Q {[%emt 0:00:01]} f1=Q {[%emt 0:00:00]} 71. Qc3 {[%emt 0:00:03]} Qd1+ {[%emt 0:00:00]} 72. Kc7 {[%emt 0:00:01]} Qgc2 {[%emt 0:00:00]} 0-1

[Event "GCT Superbet Blitz Poland 2025"]
[Site "Warsaw"]
[Date "2025.04.30"]
[Round "10"]
[White "Aravindh, Chithambaram VR."]
[Black "Gavrilescu, David"]
[Result "1/2-1/2"]
[ECO "B91"]
[WhiteElo "2749"]
[BlackElo "2554"]
[Annotator "ChessBase"]
[PlyCount "89"]
[EventDate "2025.??.??"]
[EventType "blitz"]
[TimeControl "300+2"]

1. e4 {[%emt 0:00:02] Szabo,Krisztian} c5 {[%emt 0:00:02]} 2. Nf3 {[%emt 0:00:04]} d6 {[%emt 0:00:02]} 3. d4 {[%emt 0:00:05]} cxd4 {[%emt 0:00:02]} 4. Nxd4 {[%emt 0:00:02]} Nf6 {[%emt 0:00:03]} 5. Nc3 {[%emt 0:00:02]} a6 {[%emt 0:00:03]} 6. g3 {[%emt 0:00:05]} e5 {[%emt 0:00:03]} 7. Nde2 {[%emt 0:00:02]} Be7 {[%emt 0:00:37]} 8. Bg2 {[%emt 0:00:03]} b5 {[%emt 0:00:01]} ({RR} 8... O-O) 9. Nd5 {[%emt 0:00:05]} Nbd7 {[%emt 0:00:04]} 10. Nec3 {[%emt 0:00:05]} Bb7 {[%emt 0:00:25]} 11. a4 {[%emt 0:00:16]} bxa4 {[%emt 0:00:24]} ({RR} 11... Nxd5 12. Nxd5 Nf6 13. axb5 ({RR} 13. Nxe7 Qxe7 14. axb5 axb5 15. Rxa8+ Bxa8 16. Qd3) 13... Nxd5 14. exd5 axb5 15. Rxa8 Qxa8 16. Qd3 O-O 17. O-O ({RR} 17. Qxb5 Qa1 18. O-O Ba6) 17... Bc8 ({RR} 17... Qa6) 18. Be3 Bd7 19. Rc1 ({RR} 19. f4 Bf6) 19... h6 20. Qd1 Qb7 21. Ra1 Ra8 22. h4 Ra6 23. b3 Bd8 24. c4 bxc4 25. bxc4 Bb6 26. c5 {Carlsen,M (2876)-Grischuk,A (2781) Stavanger 2015 CBM 167 [Szabo,Krisztian] 1-0 (45)}) ({RR} 11... O-O 12. axb5 axb5 13. Rxa8 Bxa8 14. Nxb5 ({RR} 14. O-O) 14... Bxd5 ({RR} 14... Nxd5 15. exd5 Qa5+ 16. Nc3) 15. exd5 Qa5+ 16. Nc3 Rb8 17. O-O Bd8 18. Kh1 Qb4 19. Qe2 Bb6 20. Nb1) 12. Rxa4 {[%emt 0:00:31]} O-O {[%emt 0:00:04]} 13. O-O {[%emt 0:00:14]} Nb6 $146 {[%emt 0:00:57]} ({RR} 13... Nxd5 14. Nxd5 Bxd5 15. exd5 f5 16. Qe2 Nc5 17. Rc4 e4 18. f3 exf3 19. Bxf3 Bg5 20. Bf4 Bxf4 21. gxf4 Re8 22. Qg2 a5 23. Kh1 Qf6 24. c3 a4 25. Qg1 Rab8 26. Rb4 Rxb4 27. cxb4 Nd3 28. Qb6 {Mestre Bellido,H (2317)-Colon Garcia,E (2337) Catalunya 2013 0-1 (51)}) ({RR} 13... Nxd5 14. Nxd5 Bxd5 15. exd5 f5 16. Qe2 Nc5 17. Rc4) ({RR} 13... Nxd5 14. Nxd5 Bxd5 15. exd5 Bg5 16. f4 exf4 17. gxf4 Bf6 18. c3 Nc5 19. Ra1 Re8 20. Qc2 Qb6 21. Kh1 a5 22. Bd2 a4 23. Rae1 Reb8 24. Be3 Qxb2 25. Qxb2 Rxb2 26. Bxc5 dxc5 27. d6 Rd8 28. d7 {Shafer,L (2140)-Herman,M (2383) chess.com INT 2024 1-0 (46)}) ({RR} 13... Nxd5 14. Nxd5 Bxd5 15. exd5 Bg5 16. Bxg5 Qxg5 17. Qe2 Nc5 18. Rg4 Qd8 19. b4 Nd7 20. Ra1 a5 21. bxa5 Rxa5 22. Rxa5 Qxa5 23. Rxg7+ Kxg7 24. Qg4+ Kf6 25. Qh4+ Kg7 26. Qg4+ Kf6 27. Qh4+ Kg7 28. Qg4+ {Zhang,Z (2637)-Papaioannou,I (2631) Baku 2016 ½-½}) 14. Nxe7+ {[%emt 0:00:39]} Qxe7 {[%emt 0:00:02]} 15. Rb4 {[%emt 0:00:01]} Qc7 {[%emt 0:00:07]} 16. Bg5 {[%emt 0:00:05]} Nbd7 {[%emt 0:00:16]} 17. Qd2 {[%emt 0:00:11]} h6 {[%emt 0:00:06]} 18. Be3 {[%emt 0:00:05]} Rfd8 {[%emt 0:00:13]} 19. Rd1 {[%emt 0:00:09]} Nc5 {[%emt 0:00:22]} 20. Rc4 {[%emt 0:00:05]} Qe7 {[%emt 0:00:14]} 21. b4 {[%emt 0:00:15]} Ne6 {[%emt 0:00:33]} 22. Nd5 {[%emt 0:00:41]} Nxd5 {[%emt 0:00:02]} 23. exd5 {[%emt 0:00:02]} Nf8 {[%emt 0:00:04]} 24. Bb6 {[%emt 0:00:41]} Rdc8 {[%emt 0:00:06]} 25. Rxc8 {[%emt 0:00:02]} Rxc8 {[%emt 0:00:03]} 26. Qd3 {[%emt 0:00:04]} Qe8 {[%emt 0:00:19]} 27. c4 {[%emt 0:00:21]} Nd7 {[%emt 0:00:01]} 28. Be3 {[%emt 0:00:09]} e4 {[%emt 0:00:03]} 29. Qe2 {[%emt 0:00:20]} a5 {[%emt 0:00:14]} 30. c5 {[%emt 0:00:10]} dxc5 {[%emt 0:00:05]} 31. bxa5 {[%emt 0:00:01]} Ra8 {[%emt 0:00:11]} 32. Qd2 {[%emt 0:00:21]} Ne5 {[%emt 0:00:03]} 33. Bxc5 {[%emt 0:00:07]} Nf3+ {[%emt 0:00:11]} 34. Bxf3 {[%emt 0:00:01]} exf3 {[%emt 0:00:01]} 35. Bb6 {[%emt 0:00:02]} Qd7 {[%emt 0:00:04]} 36. Qd3 {[%emt 0:00:02]} Qg4 {[%emt 0:00:02]} 37. d6 {[%emt 0:00:03]} Qh3 {[%emt 0:00:03]} 38. Qf1 {[%emt 0:00:00]} Qd7 {[%emt 0:00:02]} 39. Qd3 {[%emt 0:00:04]} Qh3 {[%emt 0:00:01]} 40. Qf1 {[%emt 0:00:00]} Qd7 {[%emt 0:00:01]} 41. Qe1 {[%emt 0:00:04]} Ba6 {[%emt 0:00:04]} 42. Qe3 {[%emt 0:00:02]} Bb7 {[%emt 0:00:01]} 43. Qd3 {[%emt 0:00:01]} Qh3 {[%emt 0:00:02]} 44. Qf1 {[%emt 0:00:01]} Qd7 {[%emt 0:00:02]} 45. Qd3 {[%emt 0:00:04]} 1/2-1/2

[Event "GCT Superbet Blitz Poland 2025"]
[Site "Warsaw"]
[Date "2025.04.30"]
[Round "10"]
[White "Duda, Jan-Krzysztof"]
[Black "Firouzja, Alireza"]
[Result "0-1"]
[ECO "B10"]
[WhiteElo "2739"]
[BlackElo "2757"]
[Annotator "ChessBase"]
[PlyCount "84"]
[EventDate "2025.??.??"]
[EventType "blitz"]
[TimeControl "300+2"]

1. e4 {[%emt 0:00:02]} c6 {[%emt 0:00:09]} 2. Nf3 {[%emt 0:00:03]} d5 {[%emt 0:00:01]} 3. d3 {[%emt 0:00:01]} g6 {[%emt 0:00:01]} 4. Nbd2 {[%emt 0:00:05]} Bg7 {[%emt 0:00:05]} 5. g3 {[%emt 0:00:02]} e5 {[%emt 0:00:04]} 6. Bg2 {[%emt 0:00:02]} Ne7 {[%emt 0:00:02]} 7. O-O {[%emt 0:00:02]} O-O {[%emt 0:00:02]} 8. Re1 {[%emt 0:00:02]} Qc7 {[%emt 0:00:03]} 9. b3 {[%emt 0:00:11]} ({RR} 9. a4 h6 10. b4 Be6 11. Bb2 Nd7 12. d4 dxe4 13. Nxe4 f5 14. Nc5 Nxc5 15. dxc5 Rad8 16. Qc1 e4 17. Bxg7 Kxg7 18. Qb2+ Kh7 19. Nd4 Qe5 20. c3 Bd5 21. b5 Rf7 22. Rad1 Ng8 23. bxc6 Rc8 {Smirin,I (2641)-Stellwagen,D (2619) France 2009 1-0 (50)}) 9... Re8 $146 {[%emt 0:00:17]} ({RR} 9... d4 10. a4 a5 11. Ba3 b5 12. Nf1 bxa4 13. bxa4 Na6 14. c3 dxc3 15. Qc2 Nb4 16. Qxc3 Ba6 17. Bxb4 axb4 18. Qxb4 Bxd3 19. Qc3 Rfd8 20. N1d2 Qa5 21. Qxa5 Rxa5 22. Nb3 Raa8 23. Nc5 Bc4 24. Bf1 {Metaxas,P (2225)-Angelis,M (2275) Katerini 1993 1-0 (93)}) ({RR} 9... h6 10. Bb2 d4 11. c3 c5 12. cxd4 cxd4 13. Rc1 Nbc6 14. b4 a6 15. Nc4 Be6 16. a3 Rfc8 17. Nfd2 b5 18. Na5 Qb6 19. Ndb3 Nxa5 20. Nxa5 h5 21. f4 Rxc1 22. Bxc1 Rc8 23. f5 gxf5 24. Qxh5 {Milosevic,M (2390)-Pogorelskikh,S (2176) Paracin SRB 2024 ½-½ (31)}) ({RR} 9... Rd8 10. Qe2 d4 11. Rf1 a5 12. a4 Na6 13. Ne1 Nb4 14. f4 exf4 15. gxf4 f5 16. Rb1 Na2 17. Bb2 Nc3 18. Bxc3 dxc3 19. Nc4 b5 20. axb5 cxb5 21. Ne5 Bb7 22. N1f3 Bh6 23. Qe3 Rf8 24. Qd4 {Bobzin,P (2205)-Maus,S (2415) Hamburg 1993 0-1 (43)}) ({RR} 9... a5 10. Bb2 d4 11. a4 f6 12. Kh1 Bg4 13. Qe2 Na6 14. Nc4 Nb4 15. h3 Be6 16. Qd2 Kh8 17. Ba3 c5 18. Rf1 Ra6 19. Nh4 Qd7 20. Kh2 g5 21. Nf3 Ng6 22. Ng1 Rd8 23. Bf3 g4 24. Bxg4 {Salmensuu,O (2280)-Zhuravlev,V (2445) Tallinn 1996 0-1 (38)}) 10. Bb2 {[%emt 0:00:03]} d4 {[%emt 0:00:04]} 11. c3 {[%emt 0:00:13]} c5 {[%emt 0:00:06]} 12. cxd4 {[%emt 0:00:06]} cxd4 {[%emt 0:00:07]} 13. Rc1 {[%emt 0:00:14]} Nbc6 {[%emt 0:00:02]} 14. a4 {[%emt 0:00:03]} a5 {[%emt 0:00:25]} 15. Ba3 {[%emt 0:00:03]} Bh6 {[%emt 0:00:08]} 16. Rc5 {[%emt 0:00:29]} f6 {[%emt 0:00:19]} 17. h4 {[%emt 0:00:26]} Be6 {[%emt 0:00:05]} 18. Qb1 {[%emt 0:00:03]} Qd7 {[%emt 0:00:40]} 19. Nc4 {[%emt 0:00:28]} Nc8 {[%emt 0:00:08]} 20. Rb5 {[%emt 0:00:03]} Ra6 {[%emt 0:00:20]} 21. h5 {[%emt 0:01:00]} N6a7 {[%emt 0:00:25]} 22. hxg6 {[%emt 0:01:03]} hxg6 {[%emt 0:00:08]} 23. Rd5 {[%emt 0:00:05]} Bxd5 {[%emt 0:00:03]} 24. exd5 {[%emt 0:00:01]} b5 {[%emt 0:00:03]} 25. Ncxe5 {[%emt 0:00:30]} fxe5 {[%emt 0:00:05]} 26. Nxe5 {[%emt 0:00:01]} Bd2 {[%emt 0:01:23]} 27. Re4 {[%emt 0:00:22]} Qxd5 {[%emt 0:00:05]} 28. Nf3 {[%emt 0:00:08]} Rxe4 {[%emt 0:00:09]} 29. dxe4 {[%emt 0:00:03]} Qh5 {[%emt 0:00:09]} 30. Nxd2 {[%emt 0:00:02]} Qe2 {[%emt 0:00:02]} 31. Nf3 {[%emt 0:00:04]} d3 {[%emt 0:00:02]} 32. Qc1 {[%emt 0:00:01]} Rc6 {[%emt 0:00:07]} 33. Qh6 {[%emt 0:00:03]} b4 {[%emt 0:00:01]} 34. Ng5 {[%emt 0:00:02]} Qh5 {[%emt 0:00:05]} 35. Qxh5 {[%emt 0:00:03]} gxh5 {[%emt 0:00:01]} 36. Bb2 {[%emt 0:00:02]} d2 {[%emt 0:00:01]} 37. Bf3 {[%emt 0:00:01]} Rc1+ {[%emt 0:00:02]} 38. Kg2 {[%emt 0:00:01]} d1=Q {[%emt 0:00:02]} 39. Bxd1 {[%emt 0:00:01]} Rxd1 {[%emt 0:00:01]} 40. Bf6 {[%emt 0:00:05]} Nc6 {[%emt 0:00:02]} 41. f4 {[%emt 0:00:01]} Rd3 {[%emt 0:00:04]} 42. f5 {[%emt 0:00:02]} Rxb3 {[%emt 0:00:01]} 0-1